bitfinex-derivatives/quotes_SOLF0:USTF0_20251018
["timestamp","ask_amount","ask_price","bid_price","bid_amount"]
[1760816643738,3.3377843,186.03,185.95,4.98785837]
[1760816643931,47.01,186.02,185.94,2.67]
[1760816644133,2.61,186.02,185.94,2.67]
[1760816644332,29.73,186.02,185.94,2.67]
[1760816644833,29.73,186.02,185.92,4.98785837]
[1760816644834,2.61,185.99,185.91,7.65785837]
[1760816645034,2.61,185.99,185.92,2.67]
[1760816645436,7.4476,185.99,185.92,2.67]
[1760816647331,2.71,185.96,185.92,2.67]
[1760816647534,2.71,185.96,185.91,4.98785837]
[1760816647724,2.71,185.96,185.92,2.62]
[1760816647932,2.71,185.97,185.92,2.62]
[1760816648131,49.2379,185.98,185.92,2.62]
[1760816648437,4.8379,185.98,185.92,2.62]
[1760816648735,2.71,185.97,185.92,2.62]
[1760816649030,2.71,185.95,185.92,2.62]
[1760816649235,4.8382,185.96,185.9,4.98785837]
[1760816649533,2.71,185.94,185.91,2.62]
[1760816650139,2.71,185.94,185.9,4.98785837]
[1760816650328,2.71,185.94,185.91,2.62]
[1760816650736,2.71,185.94,185.9,4.98785837]
[1760816650930,2.71,185.94,185.91,2.62]
[1760816651134,2.71,185.94,185.9,4.98785837]
[1760816651339,2.71,185.94,185.91,2.62]
[1760816651636,2.71,185.94,185.89,4.98785837]
[1760816651942,20.7277843,185.94,185.88,2.62]
[1760816652144,2.71,185.94,185.88,2.62]
[1760816653935,4.839,185.93,185.88,2.62]
[1760816654137,2.71,185.92,185.88,2.62]
[1760816654339,2.71,185.92,185.87,4.98785837]
[1760816654537,2.71,185.92,185.85,12.44885837]
[1760816655145,2.71,185.92,185.85,7.60785837]
[1760816655345,2.71,185.91,185.85,7.60785837]
[1760816660646,2.71,185.91,185.85,2.62]
[1760816662050,7.5497,185.91,185.85,2.62]
[1760816666853,51.9697,185.91,185.85,2.62]
[1760816669658,44.4,185.9,185.85,2.62]
[1760816669858,2.82,185.89,185.85,2.62]
[1760816670058,44.4,185.9,185.85,2.62]
[1760816670252,2.82,185.89,185.85,2.62]
[1760816670452,44.4,185.9,185.85,2.62]
[1760816670750,2.82,185.89,185.82,12.66965837]
[1760816670951,47.22,185.89,185.82,7.6818]
[1760816671153,2.82,185.89,185.82,7.6818]
[1760816671357,19.22,185.89,185.82,7.6818]
[1760816672853,24.0602,185.89,185.82,7.6818]
[1760816673147,3.3377843,185.93,185.82,2.84]
[1760816673351,4.8396,185.91,185.82,2.84]
[1760816673556,4.8396,185.91,185.83,2.84]
[1760816674360,2.82,185.92,185.86,2.84]
[1760816676056,2.82,185.92,185.86,7.6807]
[1760816681063,2.82,185.92,185.86,12.66855837]
[1760816683361,8.1768843,185.93,185.87,4.98785837]
[1760816683560,2.82,185.92,185.87,4.98785837]
[1760816683865,8.1768843,185.93,185.88,2.84]
[1760816684761,2.82,185.92,185.88,2.84]
[1760816685765,6.1577843,185.93,185.87,12.66835837]
[1760816687270,3.3377843,185.93,185.88,4.98785837]
[1760816687468,2.61,185.92,185.88,7.71785837]
[1760816687871,3.3377843,185.93,185.88,7.71785837]
[1760816688772,2.61,185.92,185.88,4.98785837]
[1760816688974,2.61,185.92,185.89,2.73]
[1760816689367,2.61,185.92,185.89,7.71785837]
[1760816690073,3.3377843,185.93,185.89,7.71785837]
[1760816690268,2.61,185.92,185.89,7.71785837]
[1760816691270,3.3377843,185.93,185.9,7.71785837]
[1760816691460,3.3377843,185.93,185.88,4.8402]
[1760816691461,2.61,185.95,185.91,7.71785837]
[1760816691662,8.1760843,185.96,185.91,7.71785837]
[1760816691866,2.61,185.95,185.91,7.71785837]
[1760816692187,8.1760843,185.96,185.91,7.71785837]
[1760816692370,2.61,185.95,185.91,7.71785837]
[1760816693070,8.1760843,185.96,185.91,7.71785837]
[1760816693272,2.61,185.95,185.91,7.71785837]
[1760816693474,8.1760843,185.96,185.91,7.71785837]
[1760816693775,2.61,185.95,185.92,2.73]
[1760816693976,2.61,185.95,185.93,2.73]
[1760816694176,8.1760843,185.96,185.93,2.73]
[1760816694177,5.9477843,185.96,185.93,2.73]
[1760816695267,5.9477843,185.96,185.93,7.71785837]
[1760816698875,3.3377843,185.96,185.93,4.98785837]
[1760816699178,3.3377843,185.96,185.95,2.73]
[1760816699579,60.2422428,185.97,185.95,2.73]
[1760816700078,62.8522428,185.97,185.95,2.73]
[1760816700280,2.61,185.97,185.95,7.71785837]
[1760816700883,2.61,185.97,185.95,2.73]
[1760816701271,2.61,185.98,185.94,4.98785837]
[1760816701480,3.3377843,185.99,185.94,4.98785837]
[1760816701681,2.61,185.97,185.94,4.98785837]
[1760816701980,3.3377843,185.96,185.91,4.98785837]
[1760816702384,2.61,185.95,185.91,4.98785837]
[1760816702683,2.61,185.93,185.91,4.98785837]
[1760816702876,44.38,185.94,185.91,4.98785837]
[1760816703072,44.38,185.94,185.92,2.73]
[1760816703375,2.61,185.94,185.92,2.73]
[1760816703576,49.2187,185.95,185.91,4.98785837]
[1760816703773,2.61,185.94,185.91,4.98785837]
[1760816704177,44.38,185.94,185.91,4.98785837]
[1760816704375,2.61,185.93,185.91,4.98785837]
[1760816704576,44.38,185.94,185.91,4.98785837]
[1760816704783,68.85699526,186.03,185.91,4.98785837]
[1760816704784,2.61,185.92,185.91,4.98785837]
[1760816704983,2.61,185.92,185.9,4.98785837]
[1760816705280,47.7177843,185.93,185.91,2.73]
[1760816705784,2.61,185.94,185.91,2.73]
[1760816705981,46.99,185.94,185.91,2.73]
[1760816706380,2.61,185.94,185.91,2.73]
[1760816706579,2.69,185.96,185.93,2.84]
[1760816706886,63.85203997,186.03,185.95,2.84]
[1760816706887,2.69,186.02,185.95,2.84]
[1760816707087,6.0277843,186.02,185.96,4.98785837]
[1760816707379,44.4,186.01,185.96,4.98785837]
[1760816707581,2.69,186.0,185.97,2.84]
[1760816708284,47.09,186.0,185.97,2.84]
[1760816708483,2.69,186.0,185.97,2.84]
[1760816708785,47.09,186.0,185.97,2.84]
[1760816708983,2.69,186.0,185.97,2.84]
[1760816709375,3.3377843,186.02,185.96,4.98785837]
[1760816709376,2.69,186.01,185.96,4.98785837]
[1760816709579,3.3377843,186.02,185.96,4.98785837]
[1760816709985,49.2371,186.01,185.96,7.82785837]
[1760816710187,2.69,186.0,185.96,2.84]
[1760816710485,2.69,185.99,185.96,2.84]
[1760816710683,47.09,185.99,185.96,2.84]
[1760816710879,2.69,185.99,185.96,2.84]
[1760816711282,47.09,185.99,185.96,2.84]
[1760816711486,2.69,185.99,185.96,2.84]
[1760816711681,47.09,185.99,185.96,2.84]
[1760816712084,2.69,185.99,185.96,2.84]
[1760816712484,2.69,186.01,185.97,2.84]
[1760816712686,2.69,186.01,185.96,2.84]
[1760816712886,44.4,186.01,185.96,7.82785837]
[1760816713191,7.5264,186.04,185.97,2.84]
[1760816713485,7.5264,186.04,185.97,7.82785837]
[1760816713691,7.5264,186.04,185.97,4.98785837]
[1760816713891,4.8364,186.04,185.97,4.98785837]
[1760816714391,44.4,186.03,185.97,4.98785837]
[1760816714586,7.5264,186.04,185.98,2.84]
[1760816715289,44.4,186.03,185.98,2.84]
[1760816715487,4.8364,186.04,185.98,2.84]
[1760816715691,44.4,186.03,185.98,2.84]
[1760816715884,2.69,186.05,185.98,2.84]
[1760816716285,2.69,186.05,185.99,4.98785837]
[1760816716286,47.09,186.05,185.99,4.98785837]
[1760816716492,2.69,186.05,185.98,7.82785837]
[1760816717190,47.09,186.05,185.98,7.82785837]
[1760816717588,2.69,186.05,185.98,7.82785837]
[1760816717788,47.09,186.05,185.98,7.82785837]
[1760816718283,2.69,186.05,185.98,7.82785837]
[1760816718483,47.09,186.05,185.98,7.82785837]
[1760816719081,2.69,186.05,185.98,7.82785837]
[1760816719287,47.07,186.05,185.98,7.82785837]
[1760816719592,2.69,186.05,185.99,7.67785837]
[1760816719794,2.69,186.05,185.99,4.98785837]
[1760816719989,2.69,186.05,186.0,2.69]
[1760816720189,2.69,186.05,185.99,4.98785837]
[1760816720584,2.81,186.05,185.99,4.98785837]
[1760816720796,47.19,186.05,185.99,4.98785837]
[1760816721091,2.81,186.05,185.98,12.51535837]
[1760816721590,2.81,186.05,185.99,2.69]
[1760816721792,47.19,186.05,185.99,2.69]
[1760816722687,2.81,186.05,185.99,2.69]
[1760816722991,47.19,186.05,185.99,7.67785837]
[1760816723186,2.81,186.05,185.99,7.67785837]
[1760816725485,2.81,186.05,186.0,2.69]
[1760816726192,3.3377843,186.09,186.0,2.69]
[1760816726495,2.81,186.08,186.0,2.69]
[1760816726695,2.81,186.06,186.0,2.69]
[1760816726897,47.19,186.06,186.0,2.69]
[1760816727093,2.81,186.06,186.0,2.69]
[1760816727694,47.19,186.06,186.0,2.69]
[1760816727995,2.81,186.06,186.0,2.69]
[1760816728393,47.19,186.06,186.0,2.69]
[1760816728594,2.81,186.06,186.0,2.69]
[1760816728792,7.6458,186.06,186.0,2.69]
[1760816728994,2.81,186.05,185.99,4.98785837]
[1760816729394,2.81,186.05,185.99,7.67785837]
[1760816730698,49.216,186.05,185.99,2.69]
[1760816730893,2.81,186.04,185.98,4.98785837]
[1760816731100,2.81,186.03,185.97,4.98785837]
[1760816731300,47.19,186.03,185.97,4.98785837]
[1760816731893,2.81,186.03,185.98,2.69]
[1760816732492,2.81,186.03,185.97,9.82565837]
[1760816732688,2.81,186.03,185.98,2.69]
[1760816732895,7.6457,186.06,185.99,7.67785837]
[1760816733091,44.38,186.05,186.0,2.69]
[1760816733394,4.8357,186.06,186.0,4.8371]
[1760816733598,2.81,186.05,186.02,2.69]
[1760816733896,2.81,186.08,186.02,2.69]
[1760816734987,16.30754675,186.1,186.0,9.82495837]
[1760816735192,3.3377843,186.12,186.01,4.98785837]
[1760816735391,2.81,186.1,186.0,9.82495837]
[1760816735593,44.38,186.09,186.01,4.98785837]
[1760816735896,2.81,186.08,186.01,2.69]
[1760816736096,7.6453,186.08,186.01,2.69]
[1760816736293,7.6453,186.08,186.01,7.67785837]
[1760816736998,7.6453,186.08,186.02,2.69]
[1760816737298,2.81,186.08,186.02,7.67785837]
[1760816737695,2.81,186.08,186.02,12.51435837]
[1760816747404,2.83,186.07,186.02,12.43435837]
[1760816747600,47.19,186.08,186.02,12.43435837]
[1760816748704,7.6652,186.08,186.02,2.61]
[1760816749003,4.8352,186.08,186.02,2.61]
[1760816749204,4.8352,186.08,186.01,4.98785837]
[1760816749402,44.36,186.07,186.03,2.61]
[1760816749904,2.83,186.06,186.03,2.61]
[1760816750904,44.36,186.07,186.03,2.61]
[1760816751203,2.83,186.06,186.03,4.98785837]
[1760816751407,2.83,186.05,186.02,7.59785837]
[1760816751607,44.36,186.06,186.02,7.59785837]
[1760816752006,2.83,186.05,186.02,7.59785837]
[1760816752807,44.36,186.06,186.01,4.98785837]
[1760816753002,3.3377843,186.09,186.0,4.98785837]
[1760816753204,47.19,186.08,186.01,4.98785837]
[1760816753503,2.83,186.07,186.01,4.98785837]
[1760816753708,44.36,186.08,186.01,4.98785837]
[1760816754005,2.83,186.05,186.01,7.59785837]
[1760816754312,47.19,186.04,186.01,7.59785837]
[1760816755621,3.3377843,186.09,186.01,7.59785837]
[1760816755622,2.83,186.1,186.03,6.68702861]
[1760816755811,2.83,186.1,186.07,2.61]
[1760816756407,47.21,186.1,186.07,2.61]
[1760816756609,2.83,186.1,186.07,2.61]
[1760816756802,19.01703485,186.13,186.07,8.34428687]
[1760816757007,2.83,186.13,186.08,5.00650257]
[1760816757314,2.83,186.16,186.12,5.00650257]
[1760816757611,47.23,186.16,186.13,7.61650257]
[1760816758008,2.83,186.16,186.13,7.61650257]
[1760816758209,47.23,186.16,186.13,5.00650257]
[1760816758405,47.23,186.16,186.14,2.61]
[1760816758406,2.83,186.16,186.14,2.61]
[1760816758608,47.23,186.16,186.14,2.61]
[1760816758810,2.83,186.16,186.14,2.61]
[1760816761105,44.38,186.17,186.15,2.61]
[1760816761615,18.7678859,186.18,186.15,2.61]
[1760816762011,47.23,186.17,186.15,2.61]
[1760816762222,2.83,186.17,186.15,2.61]
[1760816762610,47.21,186.17,186.15,2.61]
[1760816762809,2.83,186.17,186.15,2.61]
[1760816763213,47.21,186.17,186.15,2.61]
[1760816763912,2.83,186.17,186.13,2.61]
[1760816764215,4.8325,186.19,186.13,2.61]
[1760816764416,2.83,186.17,186.13,2.61]
[1760816764616,47.21,186.17,186.13,2.61]
[1760816766513,2.83,186.16,186.13,2.61]
[1760816767421,47.21,186.16,186.13,2.61]
[1760816767722,47.19,186.16,186.13,2.61]
[1760816768116,16.41694451,186.19,186.11,7.64650257]
[1760816768422,2.81,186.14,186.11,2.64]
[1760816768817,2.81,186.14,186.1,2.64]
[1760816769018,7.643,186.17,186.1,2.64]
[1760816769215,7.643,186.17,186.1,7.64650257]
[1760816769518,44.38,186.16,186.1,2.64]
[1760816769720,15.85745192,186.19,186.12,5.00650257]
[1760816769920,2.81,186.21,186.13,5.00650257]
[1760816769921,44.38,186.18,186.13,5.00650257]
[1760816770119,44.38,186.19,186.14,2.64]
[1760816770321,2.81,186.2,186.14,2.64]
[1760816770521,2.81,186.2,186.14,7.64650257]
[1760816770722,2.81,186.2,186.15,2.64]
[1760816771128,2.81,186.2,186.14,7.64650257]
[1760816771323,2.81,186.2,186.14,2.64]
[1760816771522,47.19,186.2,186.14,2.64]
[1760816772125,2.81,186.2,186.14,2.64]
[1760816772722,47.17,186.2,186.14,2.64]
[1760816772924,2.81,186.2,186.14,2.64]
[1760816773327,44.36,186.21,186.15,4.8331]
[1760816773524,47.17,186.21,186.16,2.64]
[1760816773725,2.81,186.21,186.15,4.8331]
[1760816773926,2.81,186.21,186.16,2.64]
[1760816774733,2.81,186.21,186.15,4.8331]
[1760816775133,2.81,186.21,186.17,2.64]
[1760816775329,3.3377843,186.27,186.15,2.64]
[1760816775539,3.3377843,186.27,186.12,10.02481291]
[1760816775540,2.81,186.28,186.18,2.64]
[1760816775836,47.19,186.28,186.18,2.64]
[1760816776135,44.38,186.27,186.18,2.64]
[1760816776330,2.81,186.28,186.18,2.64]
[1760816776639,49.2104,186.27,186.18,2.64]
[1760816776835,4.8304,186.27,186.18,2.64]
[1760816777241,2.81,186.28,186.18,2.64]
[1760816777242,47.17,186.28,186.18,2.64]
[1760816777542,52.0201,186.28,186.2,7.5519]
[1760816777840,52.0001,186.28,186.2,7.5519]
[1760816778243,2.81,186.28,186.2,7.5519]
[1760816778439,47.17,186.28,186.2,7.5519]
[1760816778642,2.81,186.28,186.2,7.5519]
[1760816780039,2.81,186.28,186.2,10.8896843]
[1760816780238,19.13211358,186.28,186.2,10.8896843]
[1760816781244,2.74,186.27,186.2,2.72]
[1760816788453,2.74,186.3,186.22,2.72]
[1760816788848,18.55653719,186.3,186.22,2.72]
[1760816789149,2.74,186.28,186.22,2.72]
[1760816795759,2.74,186.27,186.2,2.72]
[1760816796758,2.74,186.27,186.21,2.72]
[1760816798458,2.74,186.27,186.21,7.5516]
[1760816801360,2.74,186.27,186.21,12.55810257]
[1760816802964,2.74,186.27,186.21,9.83810257]
[1760816803163,7.5701,186.28,186.22,2.72]
[1760816804165,7.5701,186.28,186.22,7.72650257]
[1760816804563,2.74,186.27,186.24,2.72]
[1760816806365,2.74,186.29,186.23,2.63]
[1760816807071,47.04,186.29,186.23,2.63]
[1760816807266,2.74,186.29,186.23,7.63650257]
[1760816807569,47.04,186.29,186.23,7.63650257]
[1760816807963,51.87,186.29,186.23,7.63650257]
[1760816808163,7.57,186.29,186.23,7.63650257]
[1760816808363,51.87,186.29,186.23,7.63650257]
[1760816808964,49.13,186.29,186.23,7.63650257]
[1760816809264,2.74,186.28,186.23,7.63650257]
[1760816809467,44.3,186.28,186.23,7.63650257]
[1760816809769,44.3,186.28,186.24,2.63]
[1760816809965,2.74,186.27,186.24,2.63]
[1760816810168,44.3,186.28,186.24,2.63]
[1760816810471,2.74,186.27,186.24,2.63]
[1760816812170,2.74,186.27,186.24,7.63650257]
[1760816812674,47.02,186.28,186.24,7.63650257]
[1760816812867,47.02,186.28,186.24,2.63]
[1760816813075,44.28,186.28,186.24,2.63]
[1760816813368,2.74,186.27,186.24,7.63650257]
[1760816813871,44.28,186.28,186.24,7.63650257]
[1760816814071,2.74,186.28,186.24,5.00650257]
[1760816814272,2.74,186.26,186.24,5.00650257]
[1760816814867,44.28,186.27,186.24,5.00650257]
[1760816815267,2.74,186.27,186.25,5.00650257]
[1760816815574,2.74,186.26,186.25,5.00650257]
[1760816819282,2.74,186.26,186.23,9.31702861]
[1760816819476,2.74,186.26,186.23,6.68702861]
[1760816819778,2.74,186.26,186.24,2.63]
[1760816820371,47.0,186.26,186.24,2.63]
[1760816821278,47.0,186.26,186.24,9.31702861]
[1760816821477,44.26,186.26,186.25,2.63]
[1760816821771,47.0,186.27,186.25,2.63]
[1760816821983,47.0,186.27,186.26,5.00713089]
[1760816822785,2.74,186.27,186.26,5.00713089]
[1760816822978,47.0,186.27,186.26,5.00713089]
[1760816824083,2.74,186.27,186.26,5.00713089]
[1760816824282,47.0,186.27,186.26,5.00713089]
[1760816826578,47.0,186.27,186.24,9.31702861]
[1760816826579,47.0,186.27,186.25,6.68702861]
[1760816826785,47.0,186.27,186.24,9.31702861]
[1760816827282,2.83,186.31,186.26,2.67]
[1760816827482,18.63597166,186.33,186.27,6.67948824]
[1760816827683,2.83,186.32,186.3,7.67960233]
[1760816828481,2.83,186.36,186.3,5.00960233]
[1760816828686,95.3743969,186.37,186.3,5.00960233]
[1760816829090,44.28,186.36,186.3,5.00960233]
[1760816829282,4.8282,186.36,186.3,5.00960233]
[1760816829587,95.3743969,186.37,186.3,5.00960233]
[1760816829783,44.26,186.36,186.3,5.00960233]
[1760816829985,111.32819954,186.37,186.3,5.00960233]
[1760816830187,47.09,186.36,186.3,5.00960233]
[1760816830385,111.32819954,186.37,186.3,5.00960233]
[1760816830589,2.83,186.35,186.3,5.00960233]
[1760816830886,44.26,186.36,186.3,5.00960233]
[1760816830887,2.83,186.33,186.3,5.00960233]
[1760816831086,47.09,186.32,186.3,5.00960233]
[1760816831287,2.83,186.32,186.3,5.00960233]
[1760816831687,44.26,186.31,186.3,5.00960233]
[1760816832084,47.09,186.31,186.3,5.00960233]
[1760816832384,4.8288,186.34,186.3,5.00960233]
[1760816832590,2.83,186.33,186.3,7.67960233]
[1760816832787,2.83,186.32,186.3,7.67960233]
[1760816833793,47.09,186.32,186.3,7.67960233]
[1760816834889,2.83,186.31,186.3,5.00960233]
[1760816835085,2.83,186.31,186.29,5.00960233]
[1760816835086,2.83,186.3,186.29,5.00960233]
[1760816835485,47.09,186.3,186.29,5.00960233]
[1760816835687,2.83,186.32,186.28,5.00960233]
[1760816835886,44.26,186.31,186.29,5.00960233]
[1760816836082,47.09,186.3,186.29,5.00960233]
[1760816836283,2.73,186.36,186.28,5.00960233]
[1760816836684,3.3377843,186.34,186.28,5.00960233]
[1760816837089,44.26,186.33,186.28,5.00960233]
[1760816837291,2.73,186.3,186.27,5.00960233]
[1760816837592,2.73,186.28,186.27,5.00960233]
[1760816837995,2.73,186.33,186.26,5.00960233]
[1760816838195,44.26,186.32,186.26,5.00960233]
[1760816838594,2.73,186.31,186.26,5.00960233]
[1760816838793,44.26,186.3,186.26,5.00960233]
[1760816838994,2.73,186.29,186.26,5.00960233]
[1760816839501,2.73,186.29,186.27,5.00960233]
[1760816839695,44.26,186.28,186.27,5.00960233]
[1760816839895,46.99,186.28,186.27,5.00960233]
[1760816840796,2.73,186.28,186.27,5.00960233]
[1760816840997,46.99,186.28,186.27,5.00960233]
[1760816841604,2.73,186.28,186.27,5.00960233]
[1760816841802,2.73,186.3,186.27,7.60960233]
[1760816842007,44.26,186.29,186.27,7.60960233]
[1760816842605,46.99,186.29,186.27,7.60960233]
[1760816842906,46.99,186.29,186.27,5.00960233]
[1760816843604,2.73,186.28,186.27,5.00960233]
[1760816845908,46.99,186.28,186.27,5.00960233]
[1760816846104,2.73,186.28,186.27,5.00960233]
[1760816846707,46.99,186.28,186.27,5.00960233]
[1760816847104,2.73,186.28,186.26,5.00960233]
[1760816847303,44.26,186.27,186.26,5.00960233]
[1760816848005,2.73,186.28,186.26,5.00960233]
[1760816848205,44.26,186.27,186.26,5.00960233]
[1760816848709,44.26,186.27,186.26,5.00348127]
[1760816849206,44.26,186.27,186.25,2.6]
[1760816849407,46.99,186.27,186.25,2.6]
[1760816849609,46.99,186.27,186.26,5.00376913]
[1760816850312,46.99,186.27,186.23,6.67948824]
[1760816850313,2.73,186.3,186.23,5.00376913]
[1760816850512,2.73,186.3,186.2,2.74379]
[1760816850513,44.26,186.29,186.22,5.00376913]
[1760816850707,3.3377843,186.31,186.22,5.00376913]
[1760816850910,3.3377843,186.28,186.22,5.00376913]
[1760816851311,2.73,186.24,186.2,0.14379]
[1760816851512,2.73,186.22,186.2,0.14379]
[1760816851913,44.28,186.21,186.2,0.14379]
[1760816852212,47.01,186.21,186.2,0.14379]
[1760816852418,7.562,186.21,186.2,0.14379]
[1760816852810,51.842,186.21,186.2,0.14379]
[1760816853010,2.73,186.19,186.16,5.00376913]
[1760816853206,4.8324,186.2,186.15,5.00376913]
[1760816853713,44.3,186.19,186.15,5.00376913]
[1760816853911,2.73,186.19,186.15,5.00376913]
[1760816854117,2.73,186.17,186.15,5.00376913]
[1760816854313,2.73,186.17,186.14,7.60376913]
[1760816854518,2.73,186.16,186.14,7.60376913]
[1760816856211,2.73,186.16,186.14,2.6]
[1760816858123,44.3,186.17,186.13,2.6]
[1760816858317,2.73,186.19,186.13,2.6]
[1760816858511,47.03,186.18,186.12,5.00376913]
[1760816858916,47.03,186.18,186.13,2.6]
[1760816859119,44.3,186.18,186.12,5.00376913]
[1760816859318,4.8323,186.2,186.12,2.6]
[1760816859319,2.73,186.19,186.12,2.6]
[1760816859521,44.3,186.18,186.13,2.6]
[1760816859819,2.73,186.19,186.14,2.6]
[1760816860015,44.28,186.19,186.13,5.00376913]
[1760816860215,47.01,186.19,186.13,7.60376913]
[1760816860617,2.73,186.19,186.13,7.60376913]
[1760816860818,2.73,186.17,186.14,2.6]
[1760816863424,44.28,186.18,186.13,2.6]
[1760816863623,4.8324,186.2,186.12,9.83786913]
[1760816863825,44.28,186.19,186.13,2.6]
[1760816864021,7.5624,186.2,186.13,2.6]
[1760816864422,44.28,186.19,186.13,2.6]
[1760816864817,2.73,186.18,186.13,2.6]
[1760816865022,2.73,186.18,186.12,9.83786913]
[1760816865023,2.73,186.18,186.12,12.43786913]
[1760816865423,47.01,186.18,186.12,12.43786913]
[1760816865622,47.01,186.18,186.12,7.4341]
[1760816866630,2.73,186.18,186.12,7.4341]
[1760816869526,2.73,186.18,186.14,2.59]
[1760816869826,44.28,186.19,186.14,2.59]
[1760816870226,44.28,186.19,186.13,4.8339]
[1760816870423,2.82,186.19,186.13,4.8339]
[1760816870623,2.82,186.18,186.15,2.59]
[1760816871330,44.28,186.19,186.15,2.59]
[1760816871531,2.82,186.18,186.15,2.59]
[1760816871719,4.8324,186.2,186.15,2.59]
[1760816871922,44.28,186.19,186.15,2.59]
[1760816872325,2.82,186.18,186.15,2.59]
[1760816872528,44.28,186.19,186.15,2.59]
[1760816873131,44.28,186.19,186.13,4.8339]
[1760816873326,47.1,186.19,186.13,7.4239]
[1760816873831,2.82,186.19,186.13,7.4239]
[1760816874033,44.28,186.18,186.13,7.4239]
[1760816874234,2.82,186.17,186.13,4.8339]
[1760816874925,2.82,186.17,186.14,2.59]
[1760816875632,2.82,186.17,186.13,4.8339]
[1760816875828,2.82,186.17,186.14,2.59]
[1760816877234,2.82,186.17,186.13,4.8339]
[1760816877732,2.82,186.17,186.14,2.59]
[1760816877931,2.82,186.17,186.13,4.8339]
[1760816878333,2.82,186.17,186.14,2.59]
[1760816878529,47.1,186.19,186.14,4.8336]
[1760816879334,47.1,186.19,186.15,2.59]
[1760816879523,47.1,186.19,186.14,4.8336]
[1760816879724,2.82,186.18,186.15,2.59]
[1760816880536,2.82,186.18,186.14,4.8336]
[1760816880835,2.82,186.18,186.15,2.59]
[1760816881535,2.82,186.18,186.14,4.8336]
[1760816881734,47.1,186.19,186.15,4.8334]
[1760816881932,2.82,186.19,186.16,2.59]
[1760816882236,44.28,186.2,186.18,2.59]
[1760816882634,44.28,186.2,186.16,2.59]
[1760816882837,7.6509,186.25,186.19,7.4224]
[1760816883033,44.28,186.23,186.19,4.8324]
[1760816883233,47.1,186.23,186.2,2.59]
[1760816883637,2.82,186.22,186.2,2.59]
[1760816883936,44.28,186.23,186.2,2.59]
[1760816884331,2.82,186.23,186.2,2.59]
[1760816884727,2.82,186.23,186.19,4.8324]
[1760816885331,2.82,186.23,186.2,2.59]
[1760816888629,2.82,186.23,186.2,4.8321]
[1760816888828,46.87,186.25,186.2,4.8321]
[1760816889028,2.59,186.26,186.2,4.8321]
[1760816889234,8.1683843,186.27,186.2,9.83586913]
[1760816889531,8.1683843,186.27,186.2,12.42586913]
[1760816889532,46.87,186.26,186.2,12.42586913]
[1760816889729,2.59,186.25,186.22,2.59]
[1760816890335,2.59,186.25,186.21,9.83556913]
[1760816891127,2.59,186.25,186.22,2.59]
[1760816891538,2.59,186.25,186.23,2.59]
[1760816891735,3.3377843,186.27,186.22,12.42526913]